Cogmind - Beta 12 @@@ ROGUE MODE // 2023.06.04 @ 15:08:10 Player: Mr Goldstein Result: Self-destructed Performance ------------- Evolutions (2) 1000 Regions Visited (4) 800 Robots Destroyed (12) 60 Value Destroyed (125) 125 Prototype IDs (0) 0 Alien Tech Used (0) 0 Bonus (470) 470 TOTAL SCORE: 2455 Bonus ------- Pacifist 470 Cogmind --------- Core Integrity 7/550 Matter 300/300 Energy 100/100 System Corruption 0% Temperature Cool (0) Movement Core (50) Location -8/Storage Parts ------- > --- POWER (1) -------- (None) > --- PROPULSION (4) --- (None) > --- UTILITY (4) ------ Terrain Scanner Terrain Scan Processor Terrain Scan Processor Terrain Scan Processor > --- WEAPON (2) ------- (None) > --- INVENTORY (5) ---- Grenade Launcher Grenade Launcher Grenade Launcher Grenade Launcher Plasma Cutter Peak State ------------ > --- POWER ------------ (None) > --- PROPULSION ------- (None) > --- UTILITY ---------- Terrain Scanner Terrain Scan Processor Terrain Scan Processor Terrain Scan Processor > --- WEAPON ----------- (None) > --- INVENTORY -------- Grenade Launcher Grenade Launcher Grenade Launcher Grenade Launcher Plasma Cutter [Rating: 7] Favorites ----------- Power None Propulsion Improved Hover Unit Hover Unit Improved Hover Unit Flight Unit Flight Unit Utility Terrain Scan Processor Device Terrain Scanner Processor Terrain Scan Processor Weapon Grenade Launcher Launcher Grenade Launcher Build | -11 -10 -9 -8 -8 ------- Run | Jun Mat Mat Mat Sto Slots Evolved 4 | . . 2 2 . Power . | . . . . . Propulsion 2 | . . 1 1 . Utility 2 | . . 1 1 . Weapon . | . . . . . Parts Attached 11 | . . 3 4 4 Power . | . . . . . Engine . | . . . . . Core . | . . . . . Reactor . | . . . . . Propulsion 5 | . . 3 2 . Treads . | . . . . . Leg . | . . . . . Wheel . | . . . . . Hover 3 | . . 3 . . Flight 2 | . . . 2 . Utility 4 | . . . . 4 Device 1 | . . . . 1 Storage . | . . . . . Processor 3 | . . . . 3 Hackware . | . . . . . Protection . | . . . . . Artifact . | . . . . . Weapon 2 | . . . 2 . Energy Gun . | . . . . . Energy Cannon . | . . . . . Ballistic Gun . | . . . . . Ballistic Cannon . | . . . . . Launcher 2 | . . . 2 . Special Weapon . | . . . . . Impact Weapon . | . . . . . Slashing Weapon . | . . . . . Piercing Weapon . | . . . . . Special Melee Weapon . | . . . . . Unidentified Prototypes . | . . . . . Parts Lost 5 | . . 3 2 . Power . | . . . . . Propulsion 5 | . . 3 2 . Utility . | . . . . . Weapon . | . . . . . Highest Loss Streak 3 | . . 3 2 . To Critical Strikes . | . . . . . Average Slot Usage (%) 14 | . . 14 2 28 Hover 3 | . . 14 . . Device 2 | . . . . 7 Processor 7 | . . . . 21 Naked Turns 118 | . 26 33 37 22 Heaviest Build 1 | . . . . 1 Greatest Support 21 | 3 3 21 4 3 Greatest Overweight (x) . | . . . . . Average Overweight (x) . | . . . . . Largest Inventory Capacity 5 | 5 5 5 5 5 Average Capacity 5 | 5 5 5 5 5 Most Carried 5 | . 4 5 5 5 Average Carried 4 | . 3 4 4 5 Final Capacity 5 | 5 5 5 5 5 Final Carried 5 | . 4 5 5 5 Class Distribution -------------------- 100% | Mutant Dominant Class ---------------- Mutant | -10/Materials Mutant | -9/Materials Mutant | -8/Materials Mutant | -8/Storage Resources | -11 -10 -9 -8 -8 ----------- Run | Jun Mat Mat Mat Sto Matter Collected 318 | 190 . . . 128 Remotely . | . . . . . Salvage Created 73 | . . . 73 . Parts 14 | . . . 14 . Haulers Intercepted . | . . . . . Recyclers Shooed . | . . . . . Parts Field Recycled . | . . . . . Retrieved Matter . | . . . . . Parts Self-Destructed . | . . . . . Prevented . | . . . . . Kills | -11 -10 -9 -8 -8 ------- Run | Jun Mat Mat Mat Sto Combat Hostiles Destroyed 11 | . . . 11 . AOE 11 | . . . 11 . Classes Destroyed 2 | . . . 2 . Builder 1 | . . . 1 . Swarmer 11 | . . . 11 . Best Kill Streak 12 | . . . 12 . Combat Bots Only 11 | . . . 11 . Max Kills in Single Turn 6 | . . . 6 . Gunslinging . | . . . . . Exploded 6 | . . . 6 . Melee . | . . . . . Uniques/NPCs Destroyed . | . . . . . Combat | -11 -10 -9 -8 -8 -------- Run | Jun Mat Mat Mat Sto Damage Taken 987 | . 34 296 496 161 Core 763 | . 34 186 382 161 Absorbed by Shields . | . . . . . Core Remaining (%) 79 | 100 86 53 . . Volleys Fired 4 | . . . 4 . Largest 1 | . . . 1 . Hottest 30 | . . . 30 . Shots Fired 4 | . . . 4 . Gun . | . . . . . Cannon . | . . . . . Launcher 4 | . . . 4 . Special . | . . . . . Kinetic . | . . . . . Thermal . | . . . . . Explosive 4 | . . . 4 . Electromagnetic . | . . . . . Robot Hit Streak 3 | . . . 3 . Robot Miss Streak . | . . . . . Penetration Max . | . . . . . Secondary Targets . | . . . . . Shots Hit Robots 3 | . . . 3 . Core Hits 10 | . . . 10 . Critical Kills . | . . . . . Critical Parts Destroyed . | . . . . . Critical Strikes . | . . . . . Melee Attacks . | . . . . . Impact . | . . . . . Slashing . | . . . . . Piercing . | . . . . . Sneak Attacks . | . . . . . Combat Hostiles . | . . . . . Follow-up Attacks . | . . . . . Damage Inflicted 612 | . . . 612 . Guns . | . . . . . Cannons . | . . . . . Explosions 607 | . . . 607 . Melee . | . . . . . Ramming 5 | . . . 5 . Kinetic . | . . . . . Thermal . | . . . . . Explosive 607 | . . . 607 . Electromagnetic . | . . . . . Impact . | . . . . . Slashing . | . . . . . Piercing . | . . . . . Highest Corruption . | . . . . . Average Corruption . | . . . . . Corruption Purged . | . . . . . Corruption Blocked . | . . . . . Overload Shots . | . . . . . Overflow Damage 44 | . . . 44 . Projectiles . | . . . . . Explosions 44 | . . . 44 . Melee . | . . . . . Knockbacks . | . . . . . Impact . | . . . . . Kinetic . | . . . . . Secondary . | . . . . . Self-Inflicted Damage 95 | . . . 95 . Shots 1 | . . . 1 . Rammed 2 | . . 1 1 . Targets Rammed 2 | . . 1 1 . Kicked . | . . . . . Crushed . | . . . . . Highest Temperature . | . . . . . Average Temperature . | . . . . . Received Heat Transfer 276 | . 18 105 72 81 Siege Activations . | . . . . . Robots Corrupted . | . . . . . Combat Hostiles . | . . . . . Parts Fried . | . . . . . Impact Corruptions . | . . . . . Robots Melted . | . . . . . Combat Hostiles . | . . . . . Parts Melted . | . . . . . Heat Transferred . | . . . . . Parts Sabotaged . | . . . . . Parts Stolen . | . . . . . Parts Stripped . | . . . . . Power Chain Reactions . | . . . . . Missiles Intercepted . | . . . . . Alert | -11 -10 -9 -8 -8 ------- Run | Jun Mat Mat Mat Sto Peak Influence 336 | . 15 30 336 234 Initial 137 | . . 5 8 137 Average 103 | . 7 8 171 173 Maximum Alert Level 1 | . . . 1 1 Low Security (%) 77 | 100 100 100 46 70 Level 1 22 | . . . 53 29 Level 2 . | . . . . . Level 3 . | . . . . . Level 4 . | . . . . . Level 5 . | . . . . . High Security . | . . . . . Max Security . | . . . . . Squads Dispatched 5 | . . 2 1 2 Investigation 2 | . . . 1 1 Extermination . | . . . . . Reinforcement 3 | . . 2 . 1 Assault . | . . . . . Garrison . | . . . . . Intercept . | . . . . . Searches Triggered . | . . . . . Construction Impeded . | . . . . . Haulers Reinforced . | . . . . . Active Scanning Responses . | . . . . . Cargo Convoy Interrupts . | . . . . . Stealth | -11 -10 -9 -8 -8 --------- Run | Jun Mat Mat Mat Sto Distress Signals 1 | . 1 . . . Communications Jammed . | . . . . . Distress Signals . | . . . . . Times Spotted 45 | . 4 14 20 7 Peak Tracking Total 14 | . 4 14 12 7 Tactical Retreats . | . . . . . Traps | -11 -10 -9 -8 -8 ------- Run | Jun Mat Mat Mat Sto Traps Triggered 1 | . . . 1 . Indirectly . | . . . . . Trap Hack Attempts . | . . . . . Triggered . | . . . . . Disarmed . | . . . . . Reprogrammed . | . . . . . Reused . | . . . . . Traps Extracted . | . . . . . Installed . | . . . . . Triggered . | . . . . . Machines | -11 -10 -9 -8 -8 ---------- Run | Jun Mat Mat Mat Sto Machines Disabled 1 | . . . 1 . Max in Single Turn 1 | . . . 1 . Machines Repaired . | . . . . . Machines Sabotaged . | . . . . . Overloaded Fab Kills . | . . . . . Hacking | -11 -10 -9 -8 -8 --------- Run | Jun Mat Mat Mat Sto Machines Accessed 2 | . . . . 2 Terminals 1 | . . . . 1 Fabricators . | . . . . . Repair Stations . | . . . . . Recycling Units 1 | . . . . 1 Scanalyzers . | . . . . . Garrison Access . | . . . . . Total Hacks 4 | . . . . 4 Successful 2 | . . . . 2 Failed 2 | . . . . 2 Catastrophic . | . . . . . Database Lockouts . | . . . . . Manual 1 | . . . . 1 Terminals 3 | . . . . 3 Fabricators . | . . . . . Repair Stations . | . . . . . Recycling Units 1 | . . . . 1 Scanalyzers . | . . . . . Garrison Access . | . . . . . Terminal Hacks 1 | . . . . 1 Open Door 1 | . . . . 1 Fabricator Hacks . | . . . . . Repair Station Hacks . | . . . . . Recycling Unit Hacks . | . . . . . Scanalyzer . | . . . . . Garrison Access Hacks . | . . . . . Unauthorized Hacks 1 | . . . . 1 Terminals . | . . . . . Fabricators . | . . . . . Repair Stations . | . . . . . Recycling Units 1 | . . . . 1 Tunnel 1 | . . . . 1 Scanalyzers . | . . . . . Garrison Access . | . . . . . Data Cores Recovered . | . . . . . Used . | . . . . . Hacking Detections 1 | . . . . 1 Full Trace Events . | . . . . . Feedback Events . | . . . . . Feedback Blocked . | . . . . . Robot Schematics Acquired . | . . . . . Robots Built . | . . . . . Authchips . | . . . . . Time . | . . . . . Total Robot Build Rating . | . . . . . Part Schematics Acquired . | . . . . . Parts Built . | . . . . . Authchips . | . . . . . Time . | . . . . . Total Part Build Rating . | . . . . . Parts Repaired . | . . . . . Time . | . . . . . Parts Recycled . | . . . . . Recycled Matter . | . . . . . Retrieved Matter . | . . . . . Retrieved Components . | . . . . . Parts Scanalyzed . | . . . . . Part Schematics Acquired . | . . . . . Parts Damaged . | . . . . . Bothacking | -11 -10 -9 -8 -8 ------------ Run | Jun Mat Mat Mat Sto Used RIF Installer . | . . . . . Robots Hacked . | . . . . . Non-combat . | . . . . . Combat . | . . . . . Robot Hacks Applied . | . . . . . Relay Couplers Released . | . . . . . Fabnet Peak Effective % . | . . . . . Robots Rewired . | . . . . . Allies Hacked . | . . . . . Hacks Repelled . | . . . . . Allies | -11 -10 -9 -8 -8 -------- Run | Jun Mat Mat Mat Sto Total Allies . | . . . . . Largest Group . | . . . . . Highest-Rated Group . | . . . . . Highest-Rated Ally . | . . . . . Total Orders . | . . . . . Ally Attacks . | . . . . . Total Damage . | . . . . . Kills . | . . . . . Allies Corrupted . | . . . . . Allies Melted . | . . . . . Intel | -11 -10 -9 -8 -8 ------- Run | Jun Mat Mat Mat Sto Robot Analysis Total . | . . . . . Derelict Logs Recovered . | . . . . . Drone Launches . | . . . . . Drone Recoveries . | . . . . . Exploration | -11 -10 -9 -8 -8 ------------- Run | Jun Mat Mat Mat Sto Turns Passed 270 | 14 26 73 66 91 Spaces Moved 484 | 29 43 133 111 168 Core 438 | 29 43 129 69 168 Treads . | . . . . . Legs . | . . . . . Wheels . | . . . . . Hover 4 | . . 4 . . Flight 42 | . . . 42 . Fastest Speed 40 | 50 50 50 40 50 Average Speed 49 | 50 50 50 46 50 Slowest Speed 60 | 50 50 60 50 50 Overloaded Moves . | . . . . . Propulsion Burnouts . | . . . . . Robots Hopped . | . . . . . Cave-ins Triggered . | . . . . . Exploration Rate (%) 18 | 3 15 18 21 36 Regions Visited 4 Branch Regions 1 Pre-discovered Areas 1 | . . . . 1 Known Exits Taken . | . . . . . Unknown Exits Taken 4 | 1 1 1 1 . Scrap Searched . | . . . . . Spaces Dug 9 | . . . 9 . Terrain Destroyed 30 | . . . 30 . Melee . | . . . . . Projectile . | . . . . . AOE 30 | . . . 30 . Terrain Rammed . | . . . . . Walls Destroyed . | . . . . . Machines Disabled . | . . . . . Actions | -11 -10 -9 -8 -8 --------- Run | Jun Mat Mat Mat Sto Total 504 | 28 46 137 121 172 Wait . | . . . . . Move 481 | 28 42 132 111 168 Hop . | . . . . . Pick Up 5 | . 4 1 . . Fast Attach 9 | . . 3 2 4 Attach 2 | . . . 2 . Detach 2 | . . . 2 . Swap . | . . . . . Drop . | . . . . . Fire 4 | . . . 4 . Melee . | . . . . . Ram 1 | . . 1 . . Kick . | . . . . . Crush . | . . . . . Escape Stasis . | . . . . . Rewire . | . . . . . Trap . | . . . . . Miscellaneous . | . . . . . Route ------- -11/Junkyard -10/Materials -9/Materials -8/Materials -8/Storage History --------- Turn | Location | Event 8 | -11/Junkyard | Discovered new exit (range 15) 15 | -11/Junkyard | Entered Materials 38 | -10/Materials | Discovered new exit (range 6) 41 | -10/Materials | Entered another Materials area 41 | -9/Materials | Evolved 2 slots: Propulsion x1, Utility x1 106 | -9/Materials | Discovered new exit (range 14) 114 | -9/Materials | Entered another Materials area 114 | -8/Materials | Evolved 2 slots: Propulsion x1, Utility x1 142 | -8/Materials | Lost 3 parts (3n) 175 | -8/Materials | Core integrity fell below 50% 175 | -8/Materials | Discovered new exit (range 10) 178 | -8/Materials | Destroyed 11 combat bots 180 | -8/Materials | Entered Storage 264 | -8/Storage | Core integrity fell below 20% 271 | -8/Storage | Self-destructed Last Messages --------------- GOAL=ESCAPE 00194_ Connecting with Door Terminal... 00194_ Current location identified: Storage >>Open(Door) Sealed Heavy Doors opened. 00198_ K-01 Serf collects debris. 00202_ Acquired Terrain Scan Processor. 00208_ Acquired Terrain Scanner. 00219_ Acquired 128 matter. 00244_ Connecting with Recycling Unit... >>Force(Tunnel) DISCOVERED[-6/Archives] 00244_ ALERT: Suspicious activity at Recycling Unit S001. Dispatching Investigation squad. 00249_ O-16 Technician: "IFF HANDSHAKE FAILED. SECURING TERMINAL." 00251_ O-16 Technician uses terminal to summon reinforcements. 00251_ ALERT: Hostiles spotted, dispatching reinforcements to Terminal S004. 00251_ O-16 Technician locks terminal. 00270_ Critical hit (Burn: +37). Map ----- +----------------------------------------------------+ | ???????????????????????????????????????? | | ???????????????????????????????????????? | | ???????????????????????????????????????? | | ???????????????????????????????????????? | | ???????????????????????????????????????? | | ???????????????????????????????????????? | | ???????????????????????????????????????? | | ???????????????????????????????????????? | | ???????????????????????????????????????? | | ???????????????????????????????????????? | | ????????????????????????? ???????????? | | ????????????????????????? #??????????? | | ????????????????????????? #??????????? | | ????????????????????????# #??????????? | | ??????????????????????#?# ##?????????? | | ???????????????? ??? ???#r #??????????? | | ????????????????????????# #???#??????? | | ????????????????????????#g g#??#???????? | | ?????????????????????? ?# #??????????? | | ????????????????? ??????# +??????????? | | ??????????????#?????????+ g #?"????????? | | ???????????????? ???????# #?# ???????? | | ????????????????? ??????# #??#???????? | | ????????????????????????# #??????????? | | ??????????????? ????????# #??????????? | | ????????????#???????????#@ ##????#????# | | ????????????????????#???# #???#??????? | | ?#????????????????????#?# #???#?????#? | | ???????????????##??#?#??# #??????????# | | ?????????????????#???##?# ##?#???#???? | | ????????????????? ??????# #????????### | | ?????????????? ???? ? ?## ##?#???????# | | ????????????????? ??????# #??#??????#? | | ?? ?????? ???? ???????## #???? ? ??? | | ?????????? ??????? ? ??## ##? ???????? | | "????????????/ ??? ? ?# # ?? ???# | | ??"??"???? ??? ???????## #??? ????? | | ?"????? ?? # ? ? ? ?+ Y + ? ?????? | | ??? ????#? ??????? ??## #??? ?????? | | ######???????#?#?#?????# #??? ????? | | / ##??? ? ?##???###### ##? ???????? | | #?#?????? ? ??? ## ## ?? ? ???? | | #??????? ??? ? ## #???????#??? | | #?#?? ????? ? ## ##??#???#?#? | | ####/##?# ? ? ?###### ## ##??#?#????? | | #??#?####### ### ## #?#?#??????? | | ####### # ## ### ### #?#? | | + """ # ## #??? | | ############ """ # ## ##????? | | ??#??##?# """ + ## ##+#+#??#?#? | +----------------------------------------------------+ Best States ------------- Heat Dissipation 31 Energy Generation 5 Energy Capacity 100 Matter Stores 300 Matter Capacity 300 Sight Range 16 Terrain Scan Range 14 Terrain Scan Density 235 Evasion (%) 62 Item Schematics ----------------- None Robot Schematics ------------------ None Fabricated ------------ Nothing Alien Tech Used ----------------- None Achievements -------------- None Challenges ------------ None Game ------ Seed IntegrityDisruptorPrototype Manual? 0 Play Time 00:03:59 Cumulative 271.9 hours Start 2023.06.04 @ 15:01:12 End 2023.06.04 @ 15:08:10 Sessions 1 Manual Loads 0 Difficulty Rogue Special Mode None Game No. 804 Rogue 804 Adventurer 0 Explorer 0 Win Type - Total 15 Types 8/0/5/2/0/0/0/0/0 Lore% 89 Gallery% 86 Achievement% 77 Wizard Run 0 Options --------- ASCII 0 Keyboard 0 Movement Numpad Keybinds 0 Fullscreen 1 Font 16/SmallcapsGlow Map View 75x55 Tactical HUD 1 Map Filters NONE Filters NONE Steam 1 RUN: fdbdca2e-3cce-4dff-a0ea-214b2b6c863a